[Event "Titled Tuesday Blitz February 21 Late 2023"]
[White "Averjanov, Alexey"]
[Black "sissahungrychess"]
[WhiteFideId "14109867"]
[WhiteElo "2399"]
[BlackElo "2453"]
[Result "1-0"]
[Round "05"]
[TimeControl "180+2"]
[Date "2023.02.21"]
[WhiteClock "0:00:13"]
[BlackClock "0:00:03"]

1. d4 {[%clk 0:03:00]}  Nf6 {[%clk 0:02:59]} 2. c4 {[%clk 0:02:59]}  e6 {[%clk 0:03:00]} 3. Nf3 {[%clk 0:03:00]}  d5 {[%clk 0:03:00]} 4. e3 {[%clk 0:03:00]}  Be7 {[%clk 0:03:00]} 5. Nbd2 {[%clk 0:02:59]}  O-O {[%clk 0:03:00]} 6. Bd3 {[%clk 0:02:59]}  a6 {[%clk 0:03:00]} 7. O-O {[%clk 0:02:57]}  c5 {[%clk 0:02:59]} 8. dxc5 {[%clk 0:02:56]}  Bxc5 {[%clk 0:02:50]} 9. a3 {[%clk 0:02:56]}  Nc6 {[%clk 0:02:44]} 10. b4 {[%clk 0:02:55]}  Ba7 {[%clk 0:02:44]} 11. Bb2 {[%clk 0:02:55]}  d4 {[%clk 0:02:41]} 12. exd4 {[%clk 0:02:51]}  Nxd4 {[%clk 0:02:41]} 13. c5 {[%clk 0:02:46]}  Nc6 {[%clk 0:02:20]} 14. Qe2 {[%clk 0:02:41]}  Bb8 {[%clk 0:02:20]} 15. Rad1 {[%clk 0:02:39]}  Nd5 {[%clk 0:02:11]} 16. Qe4 {[%clk 0:02:25]}  f5 {[%clk 0:02:12]} 17. Qc4 {[%clk 0:02:18]}  Qe8 {[%clk 0:01:51]} 18. Rfe1 {[%clk 0:02:13]}  Nf4 {[%clk 0:01:21]} 19. Ne5 {[%clk 0:01:47]}  Nxd3 {[%clk 0:00:52]} 20. Qxd3 {[%clk 0:01:42]}  Ne7 {[%clk 0:00:45]} 21. Ndc4 {[%clk 0:01:36]}  Nd5 {[%clk 0:00:46]} 22. Nd6 {[%clk 0:01:22]}  Qh5 {[%clk 0:00:35]} 23. Nec4 {[%clk 0:01:14]}  Bd7 {[%clk 0:00:25]} 24. Qg3 {[%clk 0:01:01]}  Qh6 {[%clk 0:00:15]} 25. Rxd5 {[%clk 0:00:38]}  f4 {[%clk 0:00:15]} 26. Qg4 {[%clk 0:00:30]}  exd5 {[%clk 0:00:15]} 27. Qxd7 {[%clk 0:00:27]}  dxc4 {[%clk 0:00:15]} 28. Re7 {[%clk 0:00:22]}  c3 {[%clk 0:00:03]} 29. Bxc3 {[%clk 0:00:19]}  f3 {[%clk 0:00:03]} 30. Rxg7+ {[%clk 0:00:18]}  Kh8 {[%clk 0:00:03]} 31. Rg6+ {[%clk 0:00:13]} 1-0


[Site "https://www.chess.com"]

[Event "Titled Tuesday Blitz February 21 Late 2023"]
[White "Nilsen, Tobias Lang"]
[Black "Skvortsov, Andrei"]
[WhiteFideId "1521624"]
[BlackFideId "24108600"]
[WhiteElo "2247"]
[BlackElo "2313"]
[Result "0-1"]
[Round "05"]
[TimeControl "180+2"]
[Date "2023.02.21"]
[WhiteClock "0:00:13"]
[BlackClock "0:00:07"]

1. f4 {[%clk 0:02:39]}  d5 {[%clk 0:02:55]} 2. Nf3 {[%clk 0:02:37]}  g6 {[%clk 0:02:55]} 3. g3 {[%clk 0:02:38]}  Bg7 {[%clk 0:02:56]} 4. Bg2 {[%clk 0:02:38]}  Nc6 {[%clk 0:02:56]} 5. O-O {[%clk 0:02:39]}  Nh6 {[%clk 0:02:53]} 6. d3 {[%clk 0:02:39]}  O-O {[%clk 0:02:52]} 7. e4 {[%clk 0:02:38]}  dxe4 {[%clk 0:02:53]} 8. dxe4 {[%clk 0:02:38]}  Qxd1 {[%clk 0:02:53]} 9. Rxd1 {[%clk 0:02:39]}  e5 {[%clk 0:02:46]} 10. Nc3 {[%clk 0:02:31]}  exf4 {[%clk 0:02:44]} 11. Bxf4 {[%clk 0:02:32]}  Ng4 {[%clk 0:02:35]} 12. Nd5 {[%clk 0:02:24]}  Bxb2 {[%clk 0:02:32]} 13. Rab1 {[%clk 0:02:23]}  Bg7 {[%clk 0:02:29]} 14. Nxc7 {[%clk 0:02:23]}  Rb8 {[%clk 0:02:28]} 15. h3 {[%clk 0:02:15]}  Nge5 {[%clk 0:02:26]} 16. Nxe5 {[%clk 0:01:57]}  Bxe5 {[%clk 0:02:23]} 17. Rd5 {[%clk 0:01:54]}  Bxf4 {[%clk 0:02:19]} 18. gxf4 {[%clk 0:01:55]}  Be6 {[%clk 0:02:18]} 19. Nxe6 {[%clk 0:01:53]}  fxe6 {[%clk 0:02:19]} 20. Rd7 {[%clk 0:01:54]}  Rf7 {[%clk 0:02:09]} 21. Rxf7 {[%clk 0:01:51]}  Kxf7 {[%clk 0:02:10]} 22. e5 {[%clk 0:01:51]}  Nd4 {[%clk 0:02:08]} 23. Kf2 {[%clk 0:01:42]}  b6 {[%clk 0:02:06]} 24. c3 {[%clk 0:01:41]}  Nf5 {[%clk 0:02:06]} 25. Rd1 {[%clk 0:01:40]}  Ke7 {[%clk 0:02:06]} 26. Be4 {[%clk 0:01:34]}  Nh6 {[%clk 0:02:03]} 27. Ke3 {[%clk 0:01:32]}  Rc8 {[%clk 0:02:03]} 28. Rc1 {[%clk 0:01:28]}  Rc5 {[%clk 0:02:00]} 29. Kd4 {[%clk 0:01:22]}  Ra5 {[%clk 0:01:57]} 30. Rc2 {[%clk 0:01:22]}  Nf7 {[%clk 0:01:57]} 31. c4 {[%clk 0:01:17]}  Ra3 {[%clk 0:01:56]} 32. Rc3 {[%clk 0:01:16]}  Rxa2 {[%clk 0:01:55]} 33. c5 {[%clk 0:01:16]}  Ra4+ {[%clk 0:01:55]} 34. Ke3 {[%clk 0:01:13]}  bxc5 {[%clk 0:01:52]} 35. Rxc5 {[%clk 0:01:14]}  Ra3+ {[%clk 0:01:53]} 36. Kd4 {[%clk 0:01:13]}  Kd7 {[%clk 0:01:48]} 37. Bc6+ {[%clk 0:01:08]}  Kd8 {[%clk 0:01:47]} 38. Bg2 {[%clk 0:01:04]}  Nh6 {[%clk 0:01:45]} 39. Be4 {[%clk 0:00:58]}  Ra4+ {[%clk 0:01:34]} 40. Ke3 {[%clk 0:00:56]}  Ra6 {[%clk 0:01:06]} 41. Rb5 {[%clk 0:00:51]}  Rb6 {[%clk 0:00:54]} 42. Ra5 {[%clk 0:00:50]}  a6 {[%clk 0:00:54]} 43. Bd3 {[%clk 0:00:50]}  Nf5+ {[%clk 0:00:54]} 44. Kd2 {[%clk 0:00:25]}  Rb4 {[%clk 0:00:26]} 45. Rxa6 {[%clk 0:00:24]}  Rxf4 {[%clk 0:00:22]} 46. Rxe6 {[%clk 0:00:24]}  Ng7 {[%clk 0:00:17]} 47. Rd6+ {[%clk 0:00:22]}  Ke7 {[%clk 0:00:17]} 48. Ke3 {[%clk 0:00:21]}  Rh4 {[%clk 0:00:16]} 49. Bf1 {[%clk 0:00:21]}  Nf5+ {[%clk 0:00:17]} 50. Kf3 {[%clk 0:00:20]}  Nxd6 {[%clk 0:00:17]} 51. exd6+ {[%clk 0:00:21]}  Kxd6 {[%clk 0:00:18]} 52. Kg3 {[%clk 0:00:22]}  Rd4 {[%clk 0:00:18]} 53. Be2 {[%clk 0:00:21]}  Ke5 {[%clk 0:00:18]} 54. Bf3 {[%clk 0:00:20]}  Kf5 {[%clk 0:00:18]} 55. Bg4+ {[%clk 0:00:20]}  Kg5 {[%clk 0:00:17]} 56. Bf3 {[%clk 0:00:20]}  h6 {[%clk 0:00:17]} 57. Bg2 {[%clk 0:00:20]}  Rd3+ {[%clk 0:00:17]} 58. Bf3 {[%clk 0:00:21]}  Kf6 {[%clk 0:00:17]} 59. Kf4 {[%clk 0:00:21]}  Ra3 {[%clk 0:00:17]} 60. Bg4 {[%clk 0:00:20]}  Ra4+ {[%clk 0:00:17]} 61. Kg3 {[%clk 0:00:21]}  Ke5 {[%clk 0:00:18]} 62. Bd7 {[%clk 0:00:20]}  Ra3+ {[%clk 0:00:18]} 63. Kg4 {[%clk 0:00:20]}  Kf6 {[%clk 0:00:18]} 64. Be8 {[%clk 0:00:20]}  h5+ {[%clk 0:00:18]} 65. Kh4 {[%clk 0:00:19]}  Ra8 {[%clk 0:00:14]} 66. Bc6 {[%clk 0:00:18]}  Rh8 {[%clk 0:00:15]} 67. Kg3 {[%clk 0:00:18]}  g5 {[%clk 0:00:15]} 68. Bf3 {[%clk 0:00:19]}  Kg6 {[%clk 0:00:15]} 69. Be4+ {[%clk 0:00:19]}  Kh6 {[%clk 0:00:15]} 70. Bf3 {[%clk 0:00:20]}  Rd8 {[%clk 0:00:15]} 71. Be4 {[%clk 0:00:20]}  Rd4 {[%clk 0:00:16]} 72. Bf5 {[%clk 0:00:20]}  Ra4 {[%clk 0:00:15]} 73. Bd7 {[%clk 0:00:20]}  Ra3+ {[%clk 0:00:15]} 74. Kg2 {[%clk 0:00:20]}  Kg7 {[%clk 0:00:16]} 75. Be8 {[%clk 0:00:20]}  Kh6 {[%clk 0:00:16]} 76. Bf7 {[%clk 0:00:20]}  Ra7 {[%clk 0:00:15]} 77. Be8 {[%clk 0:00:20]}  Re7 {[%clk 0:00:15]} 78. Bc6 {[%clk 0:00:19]}  Kg6 {[%clk 0:00:16]} 79. Bf3 {[%clk 0:00:18]}  Re8 {[%clk 0:00:13]} 80. Bc6 {[%clk 0:00:17]}  Rh8 {[%clk 0:00:13]} 81. Bf3 {[%clk 0:00:17]}  Kf5 {[%clk 0:00:14]} 82. Bd1 {[%clk 0:00:17]}  Kf4 {[%clk 0:00:14]} 83. Be2 {[%clk 0:00:17]}  Ke3 {[%clk 0:00:10]} 84. Bd1 {[%clk 0:00:17]}  Ke4 {[%clk 0:00:10]} 85. Bc2+ {[%clk 0:00:16]}  Kf4 {[%clk 0:00:11]} 86. Bd1 {[%clk 0:00:17]}  Ke5 {[%clk 0:00:12]} 87. Be2 {[%clk 0:00:17]}  Kf5 {[%clk 0:00:12]} 88. Bd3+ {[%clk 0:00:18]}  Kf4 {[%clk 0:00:11]} 89. Be2 {[%clk 0:00:18]}  h4 {[%clk 0:00:05]} 90. Bg4 {[%clk 0:00:18]}  Rb8 {[%clk 0:00:06]} 91. Kf1 {[%clk 0:00:14]}  Rb2 {[%clk 0:00:06]} 92. Bd7 {[%clk 0:00:13]}  Kg3 {[%clk 0:00:07]} 93. Kg1 {[%clk 0:00:13]}  Rb1# {[%clk 0:00:07]} 0-1


[Site "https://www.chess.com"]

[Event "Titled Tuesday Blitz February 21 Late 2023"]
[White "Maltsevskaya, Aleksandra"]
[Black "Vaglio Mattey, Emanuel"]
[WhiteFideId "24174041"]
[BlackFideId "6504167"]
[WhiteElo "2390"]
[BlackElo "2155"]
[Result "1/2-1/2"]
[Round "05"]
[TimeControl "180+2"]
[Date "2023.02.21"]
[WhiteClock "0:00:02"]
[BlackClock "0:00:07"]

1. e4 {[%clk 0:03:00]}  c6 {[%clk 0:02:55]} 2. Nc3 {[%clk 0:03:00]}  d5 {[%clk 0:02:55]} 3. Nf3 {[%clk 0:03:00]}  dxe4 {[%clk 0:02:55]} 4. Nxe4 {[%clk 0:03:00]}  Nf6 {[%clk 0:02:56]} 5. Nxf6+ {[%clk 0:03:01]}  exf6 {[%clk 0:02:57]} 6. d4 {[%clk 0:03:01]}  g6 {[%clk 0:02:56]} 7. Bd3 {[%clk 0:03:02]}  Bg7 {[%clk 0:02:57]} 8. O-O {[%clk 0:03:03]}  O-O {[%clk 0:02:57]} 9. c3 {[%clk 0:03:04]}  Re8 {[%clk 0:02:57]} 10. h3 {[%clk 0:03:05]}  Nd7 {[%clk 0:02:57]} 11. Bf4 {[%clk 0:03:06]}  Nf8 {[%clk 0:02:57]} 12. Qd2 {[%clk 0:03:06]}  Ne6 {[%clk 0:02:56]} 13. Bh6 {[%clk 0:03:06]}  c5 {[%clk 0:02:56]} 14. Bxg7 {[%clk 0:03:06]}  Kxg7 {[%clk 0:02:56]} 15. Rfe1 {[%clk 0:03:06]}  cxd4 {[%clk 0:02:50]} 16. cxd4 {[%clk 0:03:07]}  Nxd4 {[%clk 0:02:42]} 17. Nxd4 {[%clk 0:02:49]}  Rxe1+ {[%clk 0:02:40]} 18. Rxe1 {[%clk 0:02:50]}  Qxd4 {[%clk 0:02:41]} 19. Re8 {[%clk 0:02:50]}  b6 {[%clk 0:02:07]} 20. Qe2 {[%clk 0:02:19]}  Bb7 {[%clk 0:02:03]} 21. Re7 {[%clk 0:02:19]}  Bd5 {[%clk 0:01:33]} 22. Rd7 {[%clk 0:02:19]}  Qc5 {[%clk 0:01:17]} 23. Qe1 {[%clk 0:02:10]}  Qc6 {[%clk 0:00:51]} 24. Qe7 {[%clk 0:02:08]}  Qe6 {[%clk 0:00:52]} 25. b3 {[%clk 0:02:02]}  a5 {[%clk 0:00:46]} 26. Qxe6 {[%clk 0:01:58]}  Bxe6 {[%clk 0:00:47]} 27. Rb7 {[%clk 0:01:58]}  Rd8 {[%clk 0:00:40]} 28. Bf1 {[%clk 0:01:52]}  Rd1 {[%clk 0:00:30]} 29. f3 {[%clk 0:01:20]}  Ra1 {[%clk 0:00:30]} 30. Rxb6 {[%clk 0:01:15]}  Rxa2 {[%clk 0:00:30]} 31. Rb5 {[%clk 0:01:10]}  Ra3 {[%clk 0:00:26]} 32. Bc4 {[%clk 0:00:59]}  Bxc4 {[%clk 0:00:17]} 33. bxc4 {[%clk 0:01:00]}  Rc3 {[%clk 0:00:17]} 34. Rxa5 {[%clk 0:01:00]}  Rxc4 {[%clk 0:00:18]} 35. Ra7 {[%clk 0:01:00]}  f5 {[%clk 0:00:18]} 36. Kf2 {[%clk 0:00:59]}  f4 {[%clk 0:00:18]} 37. Ra6 {[%clk 0:00:58]}  h6 {[%clk 0:00:18]} 38. Rd6 {[%clk 0:00:57]}  g5 {[%clk 0:00:18]} 39. Kg1 {[%clk 0:00:58]}  f6 {[%clk 0:00:18]} 40. Kh2 {[%clk 0:00:58]}  Kg6 {[%clk 0:00:19]} 41. h4 {[%clk 0:00:58]}  Rc1 {[%clk 0:00:17]} 42. h5+ {[%clk 0:00:56]}  Kxh5 {[%clk 0:00:17]} 43. Rxf6 {[%clk 0:00:56]}  Rc2 {[%clk 0:00:17]} 44. Kh3 {[%clk 0:00:55]}  Rc1 {[%clk 0:00:16]} 45. Kh2 {[%clk 0:00:53]}  Rc2 {[%clk 0:00:16]} 46. Kh3 {[%clk 0:00:45]}  Rc3 {[%clk 0:00:16]} 47. Kh2 {[%clk 0:00:39]}  Ra3 {[%clk 0:00:16]} 48. Re6 {[%clk 0:00:30]}  Ra7 {[%clk 0:00:15]} 49. Rf6 {[%clk 0:00:28]}  Rg7 {[%clk 0:00:15]} 50. Kh3 {[%clk 0:00:26]}  Rg6 {[%clk 0:00:13]} 51. Rf7 {[%clk 0:00:06]}  Ra6 {[%clk 0:00:13]} 52. Rg7 {[%clk 0:00:06]}  Rg6 {[%clk 0:00:12]} 53. Rf7 {[%clk 0:00:06]}  Re6 {[%clk 0:00:12]} 54. Rg7 {[%clk 0:00:06]}  Rd6 {[%clk 0:00:12]} 55. Rg8 {[%clk 0:00:04]}  Rd1 {[%clk 0:00:13]} 56. Kh2 {[%clk 0:00:04]}  Kh4 {[%clk 0:00:13]} 57. Rf8 {[%clk 0:00:03]}  h5 {[%clk 0:00:13]} 58. Rg8 {[%clk 0:00:03]}  Rd2 {[%clk 0:00:13]} 59. Rg7 {[%clk 0:00:03]}  Ra2 {[%clk 0:00:13]} 60. Rf7 {[%clk 0:00:02]}  Ra5 {[%clk 0:00:13]} 61. Rf6 {[%clk 0:00:03]}  Rc5 {[%clk 0:00:13]} 62. Rf7 {[%clk 0:00:03]}  Rc2 {[%clk 0:00:14]} 63. Rf6 {[%clk 0:00:03]}  Rc4 {[%clk 0:00:14]} 64. Rf7 {[%clk 0:00:03]}  g4 {[%clk 0:00:14]} 65. fxg4 {[%clk 0:00:04]}  hxg4 {[%clk 0:00:13]} 66. Rh7+ {[%clk 0:00:04]}  Kg5 {[%clk 0:00:14]} 67. Rg7+ {[%clk 0:00:05]}  Kf5 {[%clk 0:00:14]} 68. Rf7+ {[%clk 0:00:05]}  Kg6 {[%clk 0:00:15]} 69. Rf8 {[%clk 0:00:06]}  Rc1 {[%clk 0:00:15]} 70. Rg8+ {[%clk 0:00:06]}  Kf5 {[%clk 0:00:15]} 71. Rf8+ {[%clk 0:00:06]}  Ke4 {[%clk 0:00:16]} 72. Re8+ {[%clk 0:00:07]}  Kd3 {[%clk 0:00:17]} 73. Rg8 {[%clk 0:00:07]}  g3+ {[%clk 0:00:11]} 74. Kh3 {[%clk 0:00:07]}  Ke3 {[%clk 0:00:06]} 75. Rb8 {[%clk 0:00:06]}  Rc3 {[%clk 0:00:05]} 76. Rb2 {[%clk 0:00:05]}  Rd3 {[%clk 0:00:04]} 77. Ra2 {[%clk 0:00:05]}  Rc3 {[%clk 0:00:05]} 78. Rb2 {[%clk 0:00:05]}  Rd3 {[%clk 0:00:05]} 79. Ra2 {[%clk 0:00:06]}  Rd2 {[%clk 0:00:06]} 80. Ra3+ {[%clk 0:00:06]}  Ke4 {[%clk 0:00:06]} 81. Ra4+ {[%clk 0:00:05]}  Rd4 {[%clk 0:00:06]} 82. Ra3 {[%clk 0:00:05]}  Rd3 {[%clk 0:00:06]} 83. Ra4+ {[%clk 0:00:05]}  Rd4 {[%clk 0:00:07]} 84. Ra3 {[%clk 0:00:05]}  Kf5 {[%clk 0:00:07]} 85. Ra5+ {[%clk 0:00:04]}  Ke4 {[%clk 0:00:07]} 86. Ra3 {[%clk 0:00:02]} 1/2-1/2


[Site "https://www.chess.com"]

[Event "Titled Tuesday Blitz February 21 Late 2023"]
[White "Maksimovic, Bojan"]
[Black "Vega Gutierrez, Sabrina"]
[WhiteFideId "14408120"]
[BlackFideId "2219026"]
[WhiteElo "2486"]
[BlackElo "2377"]
[Result "1-0"]
[Round "05"]
[TimeControl "180+2"]
[Date "2023.02.21"]
[WhiteClock "0:00:07"]
[BlackClock "0:00:07"]

1. e4 {[%clk 0:02:58]}  c5 {[%clk 0:02:57]} 2. Nf3 {[%clk 0:02:58]}  Nc6 {[%clk 0:02:56]} 3. d4 {[%clk 0:02:59]}  cxd4 {[%clk 0:02:57]} 4. Nxd4 {[%clk 0:02:59]}  Nf6 {[%clk 0:02:56]} 5. Nc3 {[%clk 0:03:00]}  e5 {[%clk 0:02:56]} 6. Ndb5 {[%clk 0:03:00]}  d6 {[%clk 0:02:56]} 7. Bg5 {[%clk 0:03:01]}  a6 {[%clk 0:02:56]} 8. Na3 {[%clk 0:03:01]}  b5 {[%clk 0:02:57]} 9. Bxf6 {[%clk 0:03:02]}  gxf6 {[%clk 0:02:57]} 10. Nd5 {[%clk 0:03:02]}  Bg7 {[%clk 0:02:57]} 11. Bd3 {[%clk 0:02:56]}  Ne7 {[%clk 0:02:56]} 12. Nxe7 {[%clk 0:02:53]}  Qxe7 {[%clk 0:02:57]} 13. O-O {[%clk 0:02:53]}  O-O {[%clk 0:02:47]} 14. c4 {[%clk 0:02:53]}  f5 {[%clk 0:02:47]} 15. cxb5 {[%clk 0:02:50]}  d5 {[%clk 0:02:28]} 16. exf5 {[%clk 0:01:58]}  e4 {[%clk 0:02:28]} 17. Be2 {[%clk 0:01:58]}  Bxb2 {[%clk 0:02:23]} 18. Nc2 {[%clk 0:01:58]}  Bxa1 {[%clk 0:02:14]} 19. Qxa1 {[%clk 0:01:59]}  Bxf5 {[%clk 0:02:14]} 20. bxa6 {[%clk 0:01:58]}  Rfc8 {[%clk 0:02:12]} 21. Nd4 {[%clk 0:01:58]}  Be6 {[%clk 0:02:09]} 22. a4 {[%clk 0:01:53]}  Qb4 {[%clk 0:01:46]} 23. Nxe6 {[%clk 0:01:10]}  fxe6 {[%clk 0:01:46]} 24. Qf6 {[%clk 0:01:11]}  Qf8 {[%clk 0:01:21]} 25. Qxe6+ {[%clk 0:01:10]}  Qf7 {[%clk 0:01:21]} 26. Qe5 {[%clk 0:01:01]}  Rd8 {[%clk 0:00:48]} 27. Rd1 {[%clk 0:00:51]}  Ra7 {[%clk 0:00:47]} 28. Qd4 {[%clk 0:00:44]}  Qe7 {[%clk 0:00:38]} 29. Bb5 {[%clk 0:00:40]}  Rc7 {[%clk 0:00:37]} 30. g3 {[%clk 0:00:40]}  Qc5 {[%clk 0:00:33]} 31. Qe5 {[%clk 0:00:19]}  Rf8 {[%clk 0:00:31]} 32. Qxd5+ {[%clk 0:00:10]}  Qxd5 {[%clk 0:00:28]} 33. Rxd5 {[%clk 0:00:11]}  Rc1+ {[%clk 0:00:27]} 34. Kg2 {[%clk 0:00:11]}  Rc2 {[%clk 0:00:28]} 35. Re5 {[%clk 0:00:03]}  Rfxf2+ {[%clk 0:00:26]} 36. Kh3 {[%clk 0:00:03]}  h5 {[%clk 0:00:18]} 37. Rxh5 {[%clk 0:00:02]}  Rxh2+ {[%clk 0:00:18]} 38. Kg4 {[%clk 0:00:03]}  Rxh5 {[%clk 0:00:18]} 39. Kxh5 {[%clk 0:00:04]}  e3 {[%clk 0:00:19]} 40. Kg4 {[%clk 0:00:02]}  e2 {[%clk 0:00:18]} 41. a7 {[%clk 0:00:03]}  e1=Q {[%clk 0:00:17]} 42. a8=Q+ {[%clk 0:00:03]}  Kg7 {[%clk 0:00:17]} 43. Qb7+ {[%clk 0:00:04]}  Kf6 {[%clk 0:00:16]} 44. Qf3+ {[%clk 0:00:03]}  Ke7 {[%clk 0:00:14]} 45. Qf4 {[%clk 0:00:03]}  Qe6+ {[%clk 0:00:10]} 46. Kh4 {[%clk 0:00:01]}  Rh2+ {[%clk 0:00:08]} 47. Kg5 {[%clk 0:00:02]}  Qh6+ {[%clk 0:00:07]} 48. Kf5 {[%clk 0:00:02]}  Qf6+ {[%clk 0:00:04]} 49. Ke4 {[%clk 0:00:02]}  Qxf4+ {[%clk 0:00:03]} 50. gxf4 {[%clk 0:00:03]}  Kd6 {[%clk 0:00:02]} 51. Kf5 {[%clk 0:00:03]}  Rh4 {[%clk 0:00:03]} 52. Kg5 {[%clk 0:00:04]}  Rh2 {[%clk 0:00:04]} 53. f5 {[%clk 0:00:04]}  Rg2+ {[%clk 0:00:05]} 54. Kf4 {[%clk 0:00:04]}  Rf2+ {[%clk 0:00:05]} 55. Ke4 {[%clk 0:00:04]}  Ra2 {[%clk 0:00:05]} 56. f6 {[%clk 0:00:03]}  Ke6 {[%clk 0:00:05]} 57. Bc4+ {[%clk 0:00:04]}  Kxf6 {[%clk 0:00:05]} 58. Bxa2 {[%clk 0:00:05]}  Ke7 {[%clk 0:00:06]} 59. Kd5 {[%clk 0:00:05]}  Kd7 {[%clk 0:00:05]} 60. Kc5 {[%clk 0:00:06]}  Kc7 {[%clk 0:00:06]} 61. Bd5 {[%clk 0:00:06]}  Kb8 {[%clk 0:00:07]} 62. Kb6 {[%clk 0:00:07]} 1-0


[Site "https://www.chess.com"]

[Event "Titled Tuesday Blitz February 21 Late 2023"]
[White "Becerra, Juan David"]
[Black "Kanakaris, Georgios"]
[WhiteFideId "4404998"]
[BlackFideId "4209460"]
[WhiteElo "2382"]
[BlackElo "2391"]
[Result "0-1"]
[Round "05"]
[TimeControl "180+2"]
[Date "2023.02.21"]
[WhiteClock "0:01:38"]
[BlackClock "0:01:24"]

1. d4 {[%clk 0:03:00]}  Nf6 {[%clk 0:02:59]} 2. c4 {[%clk 0:03:00]}  g6 {[%clk 0:03:00]} 3. Nc3 {[%clk 0:03:00]}  Bg7 {[%clk 0:03:00]} 4. e4 {[%clk 0:03:01]}  d6 {[%clk 0:03:01]} 5. Nf3 {[%clk 0:03:01]}  O-O {[%clk 0:03:00]} 6. Be2 {[%clk 0:03:01]}  e5 {[%clk 0:03:00]} 7. d5 {[%clk 0:03:01]}  a5 {[%clk 0:03:00]} 8. Bg5 {[%clk 0:03:01]}  h6 {[%clk 0:03:00]} 9. Be3 {[%clk 0:03:01]}  Ng4 {[%clk 0:02:58]} 10. Bd2 {[%clk 0:03:01]}  f5 {[%clk 0:02:59]} 11. h3 {[%clk 0:03:01]}  Nf6 {[%clk 0:02:59]} 12. exf5 {[%clk 0:02:59]}  gxf5 {[%clk 0:02:59]} 13. Qc1 {[%clk 0:03:00]}  f4 {[%clk 0:02:53]} 14. g3 {[%clk 0:02:59]}  e4 {[%clk 0:02:52]} 15. Nd4 {[%clk 0:02:56]}  e3 {[%clk 0:02:49]} 16. fxe3 {[%clk 0:02:55]}  fxg3 {[%clk 0:02:49]} 17. Qc2 {[%clk 0:02:54]}  Na6 {[%clk 0:02:44]} 18. O-O-O {[%clk 0:02:52]}  Qe8 {[%clk 0:02:24]} 19. Rdg1 {[%clk 0:02:33]}  Nb4 {[%clk 0:02:22]} 20. Qb1 {[%clk 0:02:31]}  Nh5 {[%clk 0:02:21]} 21. a3 {[%clk 0:02:24]}  Bxd4 {[%clk 0:02:12]} 22. exd4 {[%clk 0:02:21]}  Bf5 {[%clk 0:02:08]} 23. Bxh5 {[%clk 0:01:58]}  Qxh5 {[%clk 0:02:07]} 24. Ne4 {[%clk 0:01:58]}  Qe2 {[%clk 0:01:46]} 25. Nxg3 {[%clk 0:01:49]}  Qxc4+ {[%clk 0:01:37]} 26. Bc3 {[%clk 0:01:40]}  Bxb1 {[%clk 0:01:34]} 27. Kxb1 {[%clk 0:01:38]}  Qd3+ {[%clk 0:01:27]} 28. Ka1 {[%clk 0:01:38]}  Kh7 {[%clk 0:01:24]} 0-1


[Site "https://www.chess.com"]

[Event "Titled Tuesday Blitz February 21 Late 2023"]
[White "Poliakova, Varvara"]
[Black "Buchenau, Frank"]
[WhiteFideId "13518313"]
[BlackFideId "4604350"]
[WhiteElo "2010"]
[BlackElo "2222"]
[Result "1-0"]
[Round "05"]
[TimeControl "180+2"]
[Date "2023.02.21"]
[WhiteClock "0:01:24"]
[BlackClock "0:00:12"]

1. e4 {[%clk 0:02:51]}  e6 {[%clk 0:03:00]} 2. d4 {[%clk 0:02:49]}  d5 {[%clk 0:03:00]} 3. e5 {[%clk 0:02:50]}  c5 {[%clk 0:03:00]} 4. c3 {[%clk 0:02:50]}  Qb6 {[%clk 0:03:00]} 5. a3 {[%clk 0:02:48]}  Bd7 {[%clk 0:02:59]} 6. b4 {[%clk 0:02:45]}  cxd4 {[%clk 0:02:58]} 7. cxd4 {[%clk 0:02:45]}  Bb5 {[%clk 0:02:58]} 8. Bxb5+ {[%clk 0:02:42]}  Qxb5 {[%clk 0:02:59]} 9. Nc3 {[%clk 0:02:42]}  Qc6 {[%clk 0:02:59]} 10. Qd3 {[%clk 0:02:39]}  Nd7 {[%clk 0:02:58]} 11. Bb2 {[%clk 0:02:36]}  Nb6 {[%clk 0:02:56]} 12. Nf3 {[%clk 0:02:35]}  Nc4 {[%clk 0:02:56]} 13. Bc1 {[%clk 0:02:33]}  Rc8 {[%clk 0:02:55]} 14. Ne2 {[%clk 0:02:31]}  a5 {[%clk 0:02:49]} 15. O-O {[%clk 0:02:31]}  axb4 {[%clk 0:02:47]} 16. axb4 {[%clk 0:02:28]}  Bxb4 {[%clk 0:02:46]} 17. Qb3 {[%clk 0:02:27]}  Bf8 {[%clk 0:02:24]} 18. Ra7 {[%clk 0:02:22]}  Rb8 {[%clk 0:01:54]} 19. Bf4 {[%clk 0:02:13]}  Ne7 {[%clk 0:01:53]} 20. Rb1 {[%clk 0:02:04]}  Nc8 {[%clk 0:01:42]} 21. Rxb7 {[%clk 0:02:02]}  Na5 {[%clk 0:01:20]} 22. Qb5 {[%clk 0:02:01]}  Qxb5 {[%clk 0:01:08]} 23. R7xb5 {[%clk 0:02:02]}  Rxb5 {[%clk 0:01:02]} 24. Rxb5 {[%clk 0:02:03]}  Nc6 {[%clk 0:00:56]} 25. Nc3 {[%clk 0:01:58]}  Be7 {[%clk 0:00:53]} 26. Na4 {[%clk 0:01:58]}  O-O {[%clk 0:00:48]} 27. Rb7 {[%clk 0:01:50]}  N8a7 {[%clk 0:00:45]} 28. Bd2 {[%clk 0:01:43]}  Rb8 {[%clk 0:00:43]} 29. Rxb8+ {[%clk 0:01:40]}  Nxb8 {[%clk 0:00:44]} 30. Kf1 {[%clk 0:01:37]}  f6 {[%clk 0:00:43]} 31. Ke2 {[%clk 0:01:35]}  Kf7 {[%clk 0:00:43]} 32. Kd3 {[%clk 0:01:33]}  Nbc6 {[%clk 0:00:40]} 33. Nc3 {[%clk 0:01:31]}  fxe5 {[%clk 0:00:35]} 34. dxe5 {[%clk 0:01:32]}  Nb4+ {[%clk 0:00:33]} 35. Ke2 {[%clk 0:01:31]}  Nac6 {[%clk 0:00:32]} 36. Nb5 {[%clk 0:01:29]}  h6 {[%clk 0:00:31]} 37. Nd6+ {[%clk 0:01:27]}  Bxd6 {[%clk 0:00:23]} 38. exd6 {[%clk 0:01:28]}  Kf6 {[%clk 0:00:17]} 39. Bc3+ {[%clk 0:01:25]}  e5 {[%clk 0:00:14]} 40. d7 {[%clk 0:01:24]}  d4 {[%clk 0:00:12]} 41. Bxb4 {[%clk 0:01:24]} 1-0


[Site "https://www.chess.com"]

[Event "Titled Tuesday Blitz February 21 Late 2023"]
[White "Hernandez Sanchez, Elvis De La Caridad"]
[Black "Shapiro, Viktor"]
[WhiteFideId "6400353"]
[BlackFideId "4175700"]
[WhiteElo "2243"]
[BlackElo "2192"]
[Result "1-0"]
[Round "05"]
[TimeControl "180+2"]
[Date "2023.02.21"]
[WhiteClock "0:00:34"]
[BlackClock "0:00:11"]

1. d4 {[%clk 0:02:52]}  Nf6 {[%clk 0:03:00]} 2. Nf3 {[%clk 0:02:52]}  e6 {[%clk 0:02:59]} 3. e3 {[%clk 0:02:52]}  d5 {[%clk 0:02:59]} 4. c4 {[%clk 0:02:50]}  Be7 {[%clk 0:02:53]} 5. Nc3 {[%clk 0:02:47]}  O-O {[%clk 0:02:53]} 6. b3 {[%clk 0:02:47]}  c6 {[%clk 0:02:52]} 7. Bb2 {[%clk 0:02:46]}  Nbd7 {[%clk 0:02:50]} 8. Bd3 {[%clk 0:02:46]}  a6 {[%clk 0:02:44]} 9. O-O {[%clk 0:02:45]}  b5 {[%clk 0:02:44]} 10. Rc1 {[%clk 0:02:25]}  bxc4 {[%clk 0:02:39]} 11. bxc4 {[%clk 0:02:25]}  Rb8 {[%clk 0:02:39]} 12. Qe2 {[%clk 0:02:18]}  Qa5 {[%clk 0:02:36]} 13. Ba1 {[%clk 0:02:04]}  Ba3 {[%clk 0:02:26]} 14. Rb1 {[%clk 0:02:03]}  Rxb1 {[%clk 0:02:02]} 15. Rxb1 {[%clk 0:02:04]}  Re8 {[%clk 0:01:53]} 16. e4 {[%clk 0:02:03]}  dxc4 {[%clk 0:01:48]} 17. Bxc4 {[%clk 0:02:00]}  e5 {[%clk 0:01:48]} 18. dxe5 {[%clk 0:01:56]}  Nxe5 {[%clk 0:01:42]} 19. Nxe5 {[%clk 0:01:56]}  Rxe5 {[%clk 0:01:24]} 20. Nd5 {[%clk 0:01:28]}  cxd5 {[%clk 0:01:23]} 21. Bxe5 {[%clk 0:01:26]}  dxc4 {[%clk 0:01:23]} 22. Bxf6 {[%clk 0:01:20]}  gxf6 {[%clk 0:01:20]} 23. Rb8 {[%clk 0:01:18]}  Kg7 {[%clk 0:00:18]} 24. Rxc8 {[%clk 0:01:16]}  c3 {[%clk 0:00:18]} 25. Qg4+ {[%clk 0:01:09]}  Kh6 {[%clk 0:00:18]} 26. Qf4+ {[%clk 0:00:55]}  Kg7 {[%clk 0:00:16]} 27. Qg3+ {[%clk 0:00:53]}  Kh6 {[%clk 0:00:16]} 28. Qxc3 {[%clk 0:00:48]}  Bb4 {[%clk 0:00:16]} 29. Qh3+ {[%clk 0:00:46]}  Kg7 {[%clk 0:00:16]} 30. Qg3+ {[%clk 0:00:46]}  Kh6 {[%clk 0:00:16]} 31. Rg8 {[%clk 0:00:42]}  Bd2 {[%clk 0:00:12]} 32. Qh4+ {[%clk 0:00:34]}  Qh5 {[%clk 0:00:11]} 33. Qxf6+ {[%clk 0:00:34]} 1-0


[Site "https://www.chess.com"]